[Event "Asian Amateur-ch Open 2022"]
[Site "Muscat"]
[Date "2022.10.04"]
[Round "8.17"]
[White "Al Balushi, Said"]
[Black "Alharthi, Ahmed Mohammed A"]
[Result "0-1"]
[ECO "A45"]
[WhiteElo "1495"]
[BlackElo "1950"]
[Annotator "TA"]
[PlyCount "128"]
[EventDate "2022.09.29"]
[EventType "swiss"]
[EventCountry "OMN"]
[SourceTitle "playchess.com"]
[Source "ChessBase"]
[SourceQuality "1"]
[TimeControl "5400+30"]

{[%evp 9,128,10,10,12,9,9,12,9,12,21,67,31,42,44,48,14,16,-58,-50,-60,-69,-67,-62,-52,-35,-84,-79,-79,0,-6,0,0,6,0,41,22,33,22,24,8,11,-11,0,0,0,0,0,0,0,0,0,0,0,0,0,0,0,0,0,0,0,0,0,0,0,0,0,0,0,0,0,0,0,-23,-8,-8,-8,-85,-8,-8,-8,-29,-29,-584,-482,-1447,-1412,-29973,-29974,-29973,-29974,-29973,-29963,-29963,-29966,-29963,-29966,-29964,-12252,-29975,-29975,-29975,-29965,-29965,-29965,-4463,-588,-29969,-29970,-29969,-29970,-29975,-29975,-29979,-29980,-29984,-29981,-29993,-29994,-29994,-29995]} 1. d4 {[%emt 0:00:32]} Nf6 {[%emt 0:00:32]} 2. Bf4 {[%emt 0:01:01]} c5 {[%emt 0:00:48]} 3. d5 {[%emt 0:00:23]} Qb6 {[%emt 0:02:00]} 4. Nc3 {[%emt 0:00:17]} d6 {[%emt 0:00:26]} 5. Bd2 {[%emt 0:06:29]} g6 {[%emt 0:01:12]} (5... Qxb2 $2 6. Rb1 Qa3 7. Nb5 $18) 6. e4 {[%emt 0:00:54] A45: Trompowsky Attack.} Bg7 {[%emt 0:00:22] [#]} 7. Bb5+ $146 {[%emt 0:03:13]} ({Predecessor:} 7. Be2 O-O 8. Nf3 e6 9. O-O exd5 10. exd5 h6 11. h3 Bf5 12. Nh4 Be4 13. Bf3 Bxf3 14. Nxf3 {1-0 (32) Sicars,T (1995)-Schmedders,H (2083) Nordrheinwestfalen 2011}) 7... Bd7 {[%emt 0:00:46]} 8. Bc4 {[%emt 0:00:40] The position is equal.} O-O {[%emt 0:01:24]} 9. a4 {[%emt 0:01:26]} Qc7 {[%emt 0:04:00]} (9... Qxb2 $2 10. Rb1 Qa3 11. Rb3 $18 (11. Rxb7 Nxe4 12. Nxe4 Qxa4 $16)) (9... e6 $11 {should be considered.}) 10. f3 {[%emt 0:05:36]} Na6 {[%emt 0:02:17]} 11. Nge2 {[%emt 0:02:53]} Nb4 {[%emt 0:01:14]} 12. g4 {[%emt 0:03:08]} e6 {[%emt 0:07:42]} 13. Nf4 {[%emt 0:15:21]} ({White should try} 13. Bf4 $11) 13... exd5 $1 $15 {[%emt 0:03:00]} 14. Nfxd5 {[%emt 0:11:02]} Nfxd5 {[%emt 0:03:31]} 15. Nxd5 {[%emt 0:04:49]} Nxd5 {[%emt 0:00:31]} 16. Bxd5 {[%emt 0:00:13]} Bc6 {[%emt 0:01:32]} 17. Bc3 {[%emt 0:01:29]} (17. Bc1 $15) 17... Bxc3+ $17 {[%emt 0:01:18]} 18. bxc3 {[%emt 0:00:24]} Qe7 {[%emt 0:00:43]} (18... Qa5 $17 19. Ra3 c4) 19. O-O $11 {[%emt 0:08:45][%cal Bh1f1,Bf1b1,Bb1b5][%mdl 32]} Rad8 {[%emt 0:04:36]} 20. Qd2 {[%emt 0:08:35]} Rfe8 {[%emt 0:05:10]} 21. c4 {[%emt 0:03:48]} Qd7 {[%emt 0:03:35]} 22. Qf4 {[%emt 0:05:14]} Bxd5 {[%emt 0:04:48]} (22... Re5 {seems wilder.} 23. Qf6 Bxd5 24. cxd5 Qe7) 23. cxd5 {[%emt 0:00:18]} Qe7 {[%emt 0:02:50]} 24. Rfb1 {[%emt 0:01:23]} Rd7 {[%emt 0:01:39]} 25. Rb5 {[%emt 0:03:29]} Qe5 {[%emt 0:06:21]} (25... f5 {is interesting.} 26. gxf5 gxf5 27. Re1 fxe4 28. fxe4 Kh8) 26. Qxe5 {[%emt 0:00:24]} Rxe5 {[%emt 0:00:07][%mdl 4096] Endgame KRR-KRR} 27. Rab1 {[%emt 0:00:34]} b6 {[%emt 0:04:00]} 28. a5 {[%emt 0:01:08]} f5 {[%emt 0:01:09]} 29. axb6 {[%emt 0:00:54]} axb6 {[%emt 0:00:11]} 30. gxf5 {[%emt 0:00:40]} gxf5 {[%emt 0:00:09]} 31. Re1 {[%emt 0:03:55]} fxe4 {[%emt 0:03:54]} 32. fxe4 {[%emt 0:00:21]} Rg7+ {[%emt 0:01:33]} 33. Kf2 {[%emt 0:01:54]} Rf7+ {[%emt 0:00:09]} 34. Ke3 {[%emt 0:01:51]} Rfe7 {[%emt 0:03:57][%csl LRd5,LRe4]} 35. Kd3 {[%emt 0:01:21]} Rxd5+ $1 {[%emt 0:01:02]} 36. exd5 {[%emt 0:00:12]} Rxe1 {[%emt 0:00:07]} 37. Rxb6 {[%emt 0:00:14] KR-KR} Rd1+ {[%emt 0:01:45]} 38. Ke4 {[%emt 0:01:16]} Rd4+ {[%emt 0:02:09]} 39. Kf5 {[%emt 0:00:06]} Rxd5+ {[%emt 0:00:05]} 40. Ke6 {[%emt 0:03:29]} Rd2 {[%emt 0:00:35][%csl LRc2,LRh2]} 41. Rb2 {[%emt 0:00:44]} c4 {[%emt 0:01:37] White should prevent ...Kg7.} ({Don't play} 41... Rxh2 $6 42. Kxd6 c4 43. Kd5 $15) 42. h4 {[%emt 0:00:31]} c3 {[%emt 0:00:28]} 43. Ra2 {[%emt 0:01:04] [#]} (43. Rb3 $1 $11) 43... d5 {[%emt 0:00:37] Black is more active.} ({Better is} 43... Kg7 $1 $17 {aiming for ...Kg6.} 44. Ra3 Rxc2 45. Kxd6 Rc1) 44. h5 {[%emt 0:00:00]} Kg7 {[%emt 0:00:10]} 45. Ke5 {[%emt 0:00:26]} Kh6 {[%emt 0:00:40]} 46. Ra3 $2 {[%emt 0:00:25][%mdl 8192] White does not recover from this.} (46. Ra7 $1 $11) 46... Rxc2 $19 {[%emt 0:00:41]} 47. Kxd5 {[%emt 0:00:14]} (47. Kd4 $142 Kxh5 48. Ra7) 47... Rd2+ {[%emt 0:01:40]} 48. Kc4 {[%emt 0:00:18]} c2 {[%emt 0:00:03]} 49. Rc3 {[%emt 0:00:24]} Kxh5 {[%emt 0:00:04]} 50. Kb3 {[%emt 0:00:46]} Kg4 {[%emt 0:00:09]} 51. Kb2 {[%emt 0:00:52]} Rf2 {[%emt 0:01:16]} 52. Rc4+ {[%emt 0:00:28]} Rf4 {[%emt 0:01:08]} 53. Rc7 {[%emt 0:00:28] [#]} h5 $1 {[%emt 0:00:56] ( -> ...h4)} 54. Rg7+ {[%emt 0:00:17]} Kf3 {[%emt 0:00:31]} 55. Kxc2 {[%emt 0:00:44]} Rd4 {[%emt 0:02:05]} 56. Rf7+ {[%emt 0:00:27]} Kg3 {[%emt 0:00:20]} 57. Rg7+ {[%emt 0:00:31]} Kh3 {[%emt 0:00:07]} (57... Rg4 $142 58. Rd7 h4 59. Rd3+ Kh2) 58. Rg5 {[%emt 0:00:36]} h4 {[%emt 0:00:29] Black mates.} 59. Kc3 {[%emt 0:00:30]} Rg4 {[%emt 0:01:14]} 60. Rh5 {[%emt 0:00:26]} Kg2 {[%emt 0:00:28]} 61. Kd2 {[%emt 0:00:22]} h3 {[%emt 0:00:13]} 62. Ke2 {[%emt 0:00:30]} h2 {[%emt 0:00:14]} 63. Rf5 {[%emt 0:00:24]} h1=Q {[%emt 0:00:26]} 64. Rf2+ {[%emt 0:00:30]} Kg3 {[%emt 0:00:17] Weighted Error Value: White=0.57/Black=0.21 (precise)} 0-1

[Event "Asian Amateur-ch Open 2022"]
[Site "Muscat"]
[Date "2022.10.04"]
[Round "8.18"]
[White "kloub.M"]
[Black "Al Zadjali, Abdul Rahman"]
[Result "0-1"]
[ECO "A60"]
[WhiteElo "1687"]
[BlackElo "1534"]
[Annotator "NA RC COMBH"]
[PlyCount "62"]
[EventDate "2022.09.29"]
[EventType "swiss"]
[EventCountry "OMN"]
[SourceTitle "playchess.com"]
[Source "ChessBase"]
[SourceQuality "1"]
[TimeControl "5400+30"]

1. d4 {[%emt 0:00:04]} Nf6 {[%emt 0:00:31]} 2. c4 {[%emt 0:00:10]} c5 {[%emt 0:00:45]} 3. d5 {[%emt 0:00:37]} e5 {[%emt 0:00:35]} 4. dxe6 {[%emt 0:01:21]} fxe6 {[%emt 0:00:22]} 5. g3 {[%emt 0:00:21]} Be7 {[%emt 0:04:38]} 6. Bg2 {[%emt 0:00:26]} O-O {[%emt 0:00:13]} 7. Nf3 {[%emt 0:00:07]} Nc6 {[%emt 0:02:11]} 8. Nc3 {[%emt 0:00:08]} d5 {[%emt 0:00:21]} 9. cxd5 {[%emt 0:06:01]} exd5 {[%emt 0:00:19]} 10. e3 {[%emt 0:00:50]} Kh8 {[%emt 0:01:18]} 11. O-O {[%emt 0:00:10]} a6 {[%emt 0:04:01]} 12. a3 {[%emt 0:02:43]} Be6 {[%emt 0:02:37]} 13. Qc2 {[%emt 0:02:35]} Qc7 {[%emt 0:04:51]} 14. Rd1 {[%emt 0:00:51]} Bg8 {[%emt 0:09:25]} 15. Nh4 {[%emt 0:20:58]} d4 {[%emt 0:06:36]} 16. exd4 {[%emt 0:01:13]} Nxd4 {[%emt 0:02:16]} 17. Qd3 {[%emt 0:06:39]} Ng4 {[%emt 0:03:40]} 18. Bf4 {[%emt 0:03:16]} Rxf4 {[%emt 0:01:07]} 19. Ng6+ {[%emt 0:20:53]} hxg6 {[%emt 0:00:01]} 20. gxf4 {[%emt 0:00:33]} Qxf4 {[%emt 0:04:03]} 21. Qh3+ {[%emt 0:03:42]} Bh7 {[%emt 0:01:24]} 22. Qg3 {[%emt 0:03:37]} g5 {[%emt 0:10:06]} 23. h3 {[%emt 0:10:45]} Qxg3 {[%emt 0:01:05]} 24. fxg3 {[%emt 0:00:08]} Ne3 {[%emt 0:00:38]} 25. Re1 {[%emt 0:08:56]} Ndc2 {[%emt 0:03:21]} 26. Rac1 {[%emt 0:00:26]} Bf6 {[%emt 0:00:39]} 27. Re2 {[%emt 0:01:50]} Bd3 {[%emt 0:05:20]} 28. Rd2 {[%emt 0:01:46]} c4 {[%emt 0:01:15]} 29. Be4 {[%emt 0:02:27]} Bxc3 {[%emt 0:00:53]} 30. Rxd3 {[%emt 0:00:55]} cxd3 {[%emt 0:00:39]} 31. bxc3 {[%emt 0:00:02]} d2 {[%emt 0:00:33]} 0-1

[Event "Asian Amateur-ch Open 2022"]
[Site "Muscat"]
[Date "2022.10.04"]
[Round "8.19"]
[White "UMER S.M"]
[Black "Ghaith Saeed Alnuaimi"]
[Result "1-0"]
[ECO "D02"]
[WhiteElo "1631"]
[BlackElo "1269"]
[Annotator "NA RC COMBH"]
[PlyCount "61"]
[EventDate "2022.09.29"]
[EventType "swiss"]
[EventCountry "OMN"]
[SourceTitle "playchess.com"]
[Source "ChessBase"]
[SourceQuality "1"]
[TimeControl "5400+30"]

1. d4 {[%emt 0:00:02]} Nf6 {[%emt 0:00:10]} 2. Nf3 {[%emt 0:00:02]} d5 {[%emt 0:00:12]} 3. Bf4 {[%emt 0:00:02]} e6 {[%emt 0:00:08]} 4. e3 {[%emt 0:00:02]} Bd6 {[%emt 0:00:08]} 5. Nbd2 {[%emt 0:00:06]} O-O {[%emt 0:00:44]} 6. Bd3 {[%emt 0:00:21]} c5 {[%emt 0:00:33]} 7. dxc5 {[%emt 0:01:05]} Bxf4 {[%emt 0:00:29]} 8. exf4 {[%emt 0:00:02]} Qa5 {[%emt 0:00:16]} 9. O-O {[%emt 0:00:44]} Qxc5 {[%emt 0:00:04]} 10. Re1 {[%emt 0:02:22]} Nc6 {[%emt 0:01:10]} 11. c3 {[%emt 0:00:16]} b5 {[%emt 0:03:29]} 12. Ne5 {[%emt 0:05:15]} Ne7 {[%emt 0:04:19]} 13. a3 {[%emt 0:04:12]} a6 {[%emt 0:01:10]} 14. Nb3 {[%emt 0:02:36]} Qc7 {[%emt 0:00:17]} 15. Nd4 {[%emt 0:00:28]} g6 {[%emt 0:13:07]} 16. g4 {[%emt 0:05:01]} Nd7 {[%emt 0:06:33]} 17. Qf3 {[%emt 0:02:53]} Nc5 {[%emt 0:01:00]} 18. g5 {[%emt 0:05:31]} Bb7 {[%emt 0:14:15]} 19. Qh3 {[%emt 0:08:41]} Nf5 {[%emt 0:01:11]} 20. Ng4 {[%emt 0:03:36]} h5 {[%emt 0:13:50]} 21. Nf6+ {[%emt 0:01:12]} Kg7 {[%emt 0:00:31]} 22. Bxf5 {[%emt 0:00:55]} exf5 {[%emt 0:00:15]} 23. Re5 {[%emt 0:34:07]} Rh8 {[%emt 0:29:55]} 24. Rae1 {[%emt 0:00:36]} Ne4 {[%emt 0:00:49]} 25. f3 {[%emt 0:02:00]} Nxf6 {[%emt 0:01:47]} 26. gxf6+ {[%emt 0:00:02]} Kxf6 {[%emt 0:01:58]} 27. Qg3 {[%emt 0:02:53]} Kg7 {[%emt 0:04:47]} 28. Re7 {[%emt 0:01:41]} Qb6 {[%emt 0:00:23]} 29. R1e6 {[%emt 0:00:40]} Qd8 {[%emt 0:00:58]} 30. Qxg6+ {[%emt 0:00:21]} Kf8 {[%emt 0:00:24]} 31. Rxf7# {[%emt 0:00:11]} 1-0

[Event "Asian Amateur-ch Open 2022"]
[Site "Muscat"]
[Date "2022.10.04"]
[Round "8.21"]
[White "Sharaf, Khaleel"]
[Black "Al Jahwari, Adnan Mohammed"]
[Result "1-0"]
[ECO "A29"]
[WhiteElo "1874"]
[BlackElo "1546"]
[Annotator "NA RC COMBH"]
[PlyCount "55"]
[EventDate "2022.09.29"]
[EventType "swiss"]
[EventCountry "OMN"]
[SourceTitle "playchess.com"]
[Source "ChessBase"]
[SourceQuality "1"]
[TimeControl "5400+30"]

1. c4 {[%emt 0:00:02]} e5 {[%emt 0:00:09]} 2. Nc3 {[%emt 0:00:08]} Nf6 {[%emt 0:00:20]} 3. Nf3 {[%emt 0:00:35]} Nc6 {[%emt 0:00:16]} 4. g3 {[%emt 0:00:09]} d5 {[%emt 0:00:14]} 5. cxd5 {[%emt 0:00:11]} Nxd5 {[%emt 0:00:08]} 6. Bg2 {[%emt 0:00:16]} Be6 {[%emt 0:00:26]} 7. O-O {[%emt 0:00:17]} f6 {[%emt 0:00:18]} 8. d4 {[%emt 0:07:40]} Nxc3 {[%emt 0:06:59]} 9. bxc3 {[%emt 0:00:03]} exd4 {[%emt 0:00:58]} 10. cxd4 {[%emt 0:00:26]} Qd7 {[%emt 0:04:02]} 11. e4 {[%emt 0:03:10]} Bg4 {[%emt 0:03:01]} 12. Be3 {[%emt 0:01:49]} O-O-O {[%emt 0:02:34]} 13. Qb3 {[%emt 0:06:57]} h5 {[%emt 0:07:23]} 14. Rab1 {[%emt 0:01:12]} b6 {[%emt 0:02:09]} 15. Rfc1 {[%emt 0:06:01]} Bxf3 {[%emt 0:06:39]} 16. Bxf3 {[%emt 0:00:16]} Nxd4 {[%emt 0:00:21]} 17. Bxd4 {[%emt 0:00:28]} Qxd4 {[%emt 0:00:12]} 18. Qe6+ {[%emt 0:10:29]} Qd7 {[%emt 0:02:47]} 19. Qc4 {[%emt 0:00:03]} c5 {[%emt 0:09:41]} 20. e5 {[%emt 0:05:17]} Qd3 {[%emt 0:04:11]} 21. Qe6+ {[%emt 0:02:27]} Qd7 {[%emt 0:02:09]} 22. Qb3 {[%emt 0:00:22]} Qd3 {[%emt 0:01:43]} 23. Rc3 {[%emt 0:01:03]} Qd7 {[%emt 0:05:29]} 24. Rd1 {[%emt 0:10:15]} Qc7 {[%emt 0:08:40]} 25. Qe6+ {[%emt 0:16:16]} Kb8 {[%emt 0:00:00]} 26. Rxd8+ {[%emt 0:11:59]} Qxd8 {[%emt 0:00:16]} 27. Qc6 {[%emt 0:00:06]} Qe7 {[%emt 0:02:58]} 28. Rd3 {[%emt 0:01:02]} 1-0

[Event "Asian Amateur-ch Open 2022"]
[Site "Muscat"]
[Date "2022.10.04"]
[Round "8.22"]
[White "Al Balushi, Emad"]
[Black "Hayabik, Husain"]
[Result "1-0"]
[ECO "A25"]
[WhiteElo "1617"]
[BlackElo "1828"]
[Annotator "NA RC COMBH"]
[PlyCount "107"]
[EventDate "2022.09.29"]
[EventType "swiss"]
[EventCountry "OMN"]
[SourceTitle "playchess.com"]
[Source "ChessBase"]
[SourceQuality "1"]
[TimeControl "5400+30"]

1. c4 {[%emt 0:09:55]} e5 {[%emt 0:00:15]} 2. g3 {[%emt 0:00:10]} Nc6 {[%emt 0:00:10]} 3. Bg2 {[%emt 0:00:10]} Nf6 {[%emt 0:00:09]} 4. Nc3 {[%emt 0:00:18]} d6 {[%emt 0:00:27]} 5. h3 {[%emt 0:00:27]} Be7 {[%emt 0:00:15]} 6. e3 {[%emt 0:00:11]} Be6 {[%emt 0:00:28]} 7. b3 {[%emt 0:00:27]} O-O {[%emt 0:00:12]} 8. Nge2 {[%emt 0:00:14]} Qd7 {[%emt 0:00:18]} 9. d4 {[%emt 0:00:40]} exd4 {[%emt 0:00:06]} 10. exd4 {[%emt 0:00:13]} Bf5 {[%emt 0:00:20]} 11. g4 {[%emt 0:04:05]} Bg6 {[%emt 0:00:08]} 12. O-O {[%emt 0:03:23]} h5 {[%emt 0:00:33]} 13. g5 {[%emt 0:00:26]} Nh7 {[%emt 0:00:02]} 14. h4 {[%emt 0:00:37]} Qg4 {[%emt 0:00:23]} 15. d5 {[%emt 0:05:13]} Nb4 {[%emt 0:01:44]} 16. Qd4 {[%emt 0:02:09]} Bd3 {[%emt 0:07:33]} 17. Qxg4 {[%emt 0:03:25]} hxg4 {[%emt 0:02:45]} 18. Rd1 {[%emt 0:00:18]} f6 {[%emt 0:00:44]} 19. a3 {[%emt 0:01:56]} Bxe2 {[%emt 0:00:40]} 20. Nxe2 {[%emt 0:00:30]} fxg5 {[%emt 0:00:20]} 21. axb4 {[%emt 0:00:31]} gxh4 {[%emt 0:00:02]} 22. Nf4 {[%emt 0:02:20]} Bf6 {[%emt 0:00:38]} 23. Ra2 {[%emt 0:00:45]} h3 {[%emt 0:00:05]} 24. Bh1 {[%emt 0:00:59]} h2+ {[%emt 0:01:10]} 25. Kg2 {[%emt 0:01:32]} Bc3 {[%emt 0:00:22]} 26. Ne6 {[%emt 0:00:59]} Rf7 {[%emt 0:00:43]} 27. Kxh2 {[%emt 0:02:12]} Bxb4 {[%emt 0:00:09]} 28. Be4 {[%emt 0:07:35]} Nf6 {[%emt 0:00:38]} 29. Bg6 {[%emt 0:00:29]} Re7 {[%emt 0:00:04]} 30. Bd2 {[%emt 0:01:53]} Bxd2 {[%emt 0:00:17]} 31. Raxd2 {[%emt 0:00:29]} c6 {[%emt 0:00:04]} 32. Kg2 {[%emt 0:02:11]} cxd5 {[%emt 0:00:02]} 33. cxd5 {[%emt 0:00:16]} Nxd5 {[%emt 0:00:30]} 34. Rxd5 {[%emt 0:00:18]} Rxe6 {[%emt 0:00:01]} 35. Rxd6 {[%emt 0:00:13]} Rxd6 {[%emt 0:00:25]} 36. Rxd6 {[%emt 0:00:22]} Kf8 {[%emt 0:00:07]} 37. Rd7 {[%emt 0:04:06]} b6 {[%emt 0:00:25]} 38. Bf5 {[%emt 0:00:22]} a5 {[%emt 0:00:13]} 39. Rb7 {[%emt 0:00:32]} a4 {[%emt 0:00:11]} 40. bxa4 {[%emt 0:00:16]} Rxa4 {[%emt 0:00:01]} 41. Rxb6 {[%emt 0:00:21]} Ke7 {[%emt 0:00:04]} 42. Kg3 {[%emt 0:00:31]} Kf7 {[%emt 0:00:51]} 43. Bxg4 {[%emt 0:00:27]} Ke7 {[%emt 0:00:10]} 44. f4 {[%emt 0:01:07]} Kf7 {[%emt 0:00:05]} 45. f5 {[%emt 0:00:14]} Ra7 {[%emt 0:00:25]} 46. Kf4 {[%emt 0:00:23]} Rc7 {[%emt 0:00:10]} 47. Kg5 {[%emt 0:00:18]} Rc8 {[%emt 0:00:25]} 48. Bh5+ {[%emt 0:05:03]} Kf8 {[%emt 0:00:19]} 49. Kg6 {[%emt 0:00:46]} Kg8 {[%emt 0:00:07]} 50. Bd1 {[%emt 0:01:01]} Kh8 {[%emt 1:29:15]} 51. Bf3 {[%emt 0:01:59]} Rd8 {[%emt 0:00:00]} 52. Re6 {[%emt 0:01:23]} Kg8 {[%emt 0:00:00]} 53. Bc6 {[%emt 0:00:45]} Kf8 {[%emt 0:00:00]} 54. Re8+ {[%emt 0:00:32]} 1-0

[Event "Asian Amateur-ch Open 2022"]
[Site "Muscat"]
[Date "2022.10.04"]
[Round "8.23"]
[White "Al Mamari, Ali Abdullah"]
[Black "Gabdushev, Arman"]
[Result "0-1"]
[ECO "D11"]
[WhiteElo "1509"]
[BlackElo "1827"]
[Annotator "NA RC COMBH"]
[PlyCount "76"]
[EventDate "2022.09.29"]
[EventType "swiss"]
[EventCountry "OMN"]
[SourceTitle "playchess.com"]
[Source "ChessBase"]
[SourceQuality "1"]
[TimeControl "5400+30"]

1. Nf3 {[%emt 0:00:05]} d5 {[%emt 0:00:11]} 2. d4 {[%emt 0:00:14]} Nf6 {[%emt 0:00:20]} 3. g3 {[%emt 0:00:17]} Bf5 {[%emt 0:00:11]} 4. Bg2 {[%emt 0:00:19]} e6 {[%emt 0:00:48]} 5. O-O {[%emt 0:01:19]} h6 {[%emt 0:00:42]} 6. c4 {[%emt 0:00:21]} c6 {[%emt 0:04:52]} 7. Nc3 {[%emt 0:00:51]} Be7 {[%emt 0:00:31]} 8. Ne5 {[%emt 0:03:00]} Nbd7 {[%emt 0:00:11]} 9. cxd5 {[%emt 0:01:05]} exd5 {[%emt 0:00:25]} 10. Bf4 {[%emt 0:02:49]} g5 {[%emt 0:01:20]} 11. Nxd7 {[%emt 0:04:13]} Qxd7 {[%emt 0:00:58]} 12. Be5 {[%emt 0:00:20]} Bh3 {[%emt 0:01:12]} 13. e3 {[%emt 0:10:10]} Bxg2 {[%emt 0:00:22]} 14. Kxg2 {[%emt 0:00:10]} h5 {[%emt 0:00:42]} 15. h3 {[%emt 0:02:14]} Rh6 {[%emt 0:02:36]} 16. Bxf6 {[%emt 0:06:09]} Bxf6 {[%emt 0:00:35]} 17. b4 {[%emt 0:00:15]} O-O-O {[%emt 0:01:26]} 18. b5 {[%emt 0:00:24]} c5 {[%emt 0:01:51]} 19. Na4 {[%emt 0:08:18]} cxd4 {[%emt 0:04:06]} 20. Nc5 {[%emt 0:09:58]} Qf5 {[%emt 0:03:27]} 21. Qa4 {[%emt 0:04:24]} Kb8 {[%emt 0:02:53]} 22. Rab1 {[%emt 0:12:25]} Be7 {[%emt 0:04:02]} 23. Qa5 {[%emt 0:12:46]} Rc8 {[%emt 0:05:55]} 24. e4 {[%emt 0:07:00]} dxe4 {[%emt 0:01:41]} 25. Na6+ {[%emt 0:00:58]} Rxa6 {[%emt 0:00:15]} 26. bxa6 {[%emt 0:02:28]} Qxa5 {[%emt 0:00:19]} 27. Rxb7+ {[%emt 0:00:08]} Ka8 {[%emt 0:00:11]} 28. Rxe7 {[%emt 0:00:07]} Qxa6 {[%emt 0:00:26]} 29. Rxe4 {[%emt 0:01:22]} Qb7 {[%emt 0:01:08]} 30. f3 {[%emt 0:00:05]} Rc2+ {[%emt 0:00:09]} 31. Rf2 {[%emt 0:00:14]} Rxf2+ {[%emt 0:00:14]} 32. Kxf2 {[%emt 0:00:06]} Qb2+ {[%emt 0:00:13]} 33. Re2 {[%emt 0:12:26]} Qc3 {[%emt 0:00:16]} 34. Re8+ {[%emt 0:00:00]} Kb7 {[%emt 0:00:05]} 35. Re7+ {[%emt 0:00:00]} Kb6 {[%emt 0:00:13]} 36. Rxf7 {[%emt 0:00:00]} Qe3+ {[%emt 0:00:05]} 37. Kf1 {[%emt 0:02:00]} d3 {[%emt 1:04:09]} 38. Rf6+ {[%emt 0:00:00]} Kc5 {[%emt 0:00:00]} 0-1

[Event "Asian Amateur-ch Open 2022"]
[Site "Muscat"]
[Date "2022.10.04"]
[Round "8.24"]
[White "Al Ansi Amin"]
[Black "Al Zaabi, Faras"]
[Result "0-1"]
[ECO "C42"]
[WhiteElo "1806"]
[BlackElo "1514"]
[Annotator "NA RC COMBH"]
[PlyCount "42"]
[EventDate "2022.09.29"]
[EventType "swiss"]
[EventCountry "OMN"]
[SourceTitle "playchess.com"]
[Source "ChessBase"]
[SourceQuality "1"]
[TimeControl "5400+30"]

1. e4 {[%emt 0:00:06]} e5 {[%emt 0:00:10]} 2. Nf3 {[%emt 0:00:08]} Nf6 {[%emt 0:00:06]} 3. Nc3 {[%emt 0:00:24]} Bb4 {[%emt 0:00:12]} 4. Bc4 {[%emt 0:03:48]} Bxc3 {[%emt 0:00:29]} 5. dxc3 {[%emt 0:00:31]} O-O {[%emt 0:00:18]} 6. Bg5 {[%emt 0:05:30]} d6 {[%emt 0:00:39]} 7. Qe2 {[%emt 0:00:13]} Nbd7 {[%emt 0:01:49]} 8. O-O-O {[%emt 0:01:54]} Qe7 {[%emt 0:00:28]} 9. Bb3 {[%emt 0:02:25]} Nc5 {[%emt 0:02:27]} 10. h3 {[%emt 0:02:25]} a5 {[%emt 0:06:42]} 11. a3 {[%emt 0:00:20]} Be6 {[%emt 0:04:18]} 12. Nd2 {[%emt 0:02:25]} c6 {[%emt 0:08:56]} 13. f4 {[%emt 0:01:55]} exf4 {[%emt 0:03:03]} 14. Bxf4 {[%emt 0:04:50]} Bxb3 {[%emt 0:02:38]} 15. Nxb3 {[%emt 0:07:15]} Nxb3+ {[%emt 0:03:29]} 16. cxb3 {[%emt 0:00:27]} Nxe4 {[%emt 0:11:53]} 17. Bxd6 {[%emt 0:03:42]} Qg5+ {[%emt 0:02:20]} 18. Kc2 {[%emt 0:04:48]} Rfe8 {[%emt 0:02:40]} 19. Bc7 {[%emt 0:14:32]} Ng3 {[%emt 0:04:21]} 20. Qg4 {[%emt 0:13:38]} Re2+ {[%emt 0:05:22]} 21. Kd3 {[%emt 0:09:08]} Qe3+ {[%emt 0:38:40]} 0-1

[Event "Asian Amateur-ch Open 2022"]
[Site "Muscat"]
[Date "2022.10.04"]
[Round "8.25"]
[White "Shaurya Dinesh Sawlani"]
[Black "Nadeem Aziz"]
[Result "1-0"]
[ECO "B30"]
[WhiteElo "1448"]
[BlackElo "1797"]
[Annotator "NA RC COMBH"]
[PlyCount "71"]
[EventDate "2022.09.29"]
[EventType "swiss"]
[EventCountry "OMN"]
[SourceTitle "playchess.com"]
[Source "ChessBase"]
[SourceQuality "1"]
[TimeControl "5400+30"]

1. e4 {[%emt 0:00:04]} c5 {[%emt 0:00:08]} 2. Nf3 {[%emt 0:00:03]} e6 {[%emt 0:00:02]} 3. Nc3 {[%emt 0:00:07]} Nc6 {[%emt 1:31:50]} 4. Bb5 {[%emt 0:00:17]} Nd4 {[%emt 0:00:00]} 5. O-O {[%emt 0:00:18]} Nxb5 {[%emt 0:00:00]} 6. Nxb5 {[%emt 0:00:08]} a6 {[%emt 0:00:00]} 7. Nc3 {[%emt 0:00:25]} d6 {[%emt 0:00:00]} 8. d4 {[%emt 0:01:03]} cxd4 {[%emt 0:00:00]} 9. Qxd4 {[%emt 0:00:25]} e5 {[%emt 0:00:00]} 10. Qd3 {[%emt 0:01:17]} Be6 {[%emt 0:00:00]} 11. Ng5 {[%emt 0:06:02]} Nf6 {[%emt 0:00:00]} 12. Nxe6 {[%emt 0:01:42]} fxe6 {[%emt 0:00:00]} 13. Kh1 {[%emt 0:04:42]} Be7 {[%emt 0:00:00]} 14. f4 {[%emt 0:02:12]} O-O {[%emt 0:00:00]} 15. fxe5 {[%emt 0:03:48]} dxe5 {[%emt 0:00:00]} 16. Qe2 {[%emt 0:04:35]} Qb6 {[%emt 0:00:00]} 17. Be3 {[%emt 0:23:12]} Qc6 {[%emt 0:00:00]} 18. Bg5 {[%emt 0:04:05]} Bb4 {[%emt 0:00:00]} 19. Bxf6 {[%emt 0:03:02]} Rxf6 {[%emt 0:00:00]} 20. Rxf6 {[%emt 0:00:16]} gxf6 {[%emt 0:00:00]} 21. Rf1 {[%emt 0:06:00]} Be7 {[%emt 0:00:00]} 22. Rf3 {[%emt 0:03:19]} Kh8 {[%emt 0:00:00]} 23. Rh3 {[%emt 0:02:31]} Rg8 {[%emt 0:00:00]} 24. Qh5 {[%emt 0:00:37]} Rg7 {[%emt 0:00:00]} 25. Rd3 {[%emt 0:00:47]} b5 {[%emt 0:00:00]} 26. a3 {[%emt 0:00:10]} f5 {[%emt 0:00:00]} 27. Rg3 {[%emt 0:05:19]} Rxg3 {[%emt 0:00:00]} 28. hxg3 {[%emt 0:01:04]} b4 {[%emt 0:00:00]} 29. axb4 {[%emt 0:07:39]} Bxb4 {[%emt 0:00:00]} 30. exf5 {[%emt 0:09:14]} Bxc3 {[%emt 0:00:00]} 31. Qf7 {[%emt 0:01:52]} Qc8 {[%emt 0:00:00]} 32. fxe6 {[%emt 0:02:44]} Qg8 {[%emt 0:00:17]} 33. Qf6+ {[%emt 0:00:20]} Qg7 {[%emt 0:00:01]} 34. Qd8+ {[%emt 0:00:09]} Qg8 {[%emt 0:00:16]} 35. e7 {[%emt 0:00:10]} Ba5 {[%emt 0:03:41]} 36. Qxg8+ {[%emt 0:08:52]} 1-0